[Event "*** Titled Tuesday Blitz AM"]
[Site "Chess.com"]
[Date "2020.01.07"]
[Round "2"]
[White "Orest_Vovk"]
[Black "HarryCun"]
[Result "1/2-1/2"]
[WhiteElo "2418"]
[BlackElo "2055"]
[TimeControl "180+2"]
[EndTime "9:25:52 PST"]
[Termination "Game drawn by repetition"]

1. d4 {[%clk 0:03:01.9]} 1... Nf6 {[%clk 0:02:37.5]} 2. Bf4 {[%clk 0:03:00]}
2... e6 {[%clk 0:02:39.4]} 3. e3 {[%clk 0:03:01.3]} 3... b6 {[%clk 0:02:40.3]}
4. Nf3 {[%clk 0:03:02.6]} 4... Bb7 {[%clk 0:02:41.9]} 5. Nbd2 {[%clk 0:03:03.8]}
5... Be7 {[%clk 0:02:43.5]} 6. Bd3 {[%clk 0:03:05.1]} 6... O-O {[%clk
0:02:45.1]} 7. O-O {[%clk 0:03:06.3]} 7... d6 {[%clk 0:02:46.6]} 8. c3 {[%clk
0:03:07.4]} 8... Nbd7 {[%clk 0:02:48.3]} 9. e4 {[%clk 0:03:08.8]} 9... c5 {[%clk
0:02:49.3]} 10. Qe2 {[%clk 0:03:08.5]} 10... Rc8 {[%clk 0:02:49.1]} 11. a4
{[%clk 0:03:09.7]} 11... d5 {[%clk 0:02:49.4]} 12. e5 {[%clk 0:03:08.3]} 12...
Nh5 {[%clk 0:02:49.8]} 13. Be3 {[%clk 0:02:32.9]} 13... g6 {[%clk 0:02:47.4]}
14. Bh6 {[%clk 0:02:24.6]} 14... Re8 {[%clk 0:02:44.9]} 15. Ne1 {[%clk
0:02:05.1]} 15... Bf8 {[%clk 0:02:42.8]} 16. Bxf8 {[%clk 0:01:58.9]} 16... Rxf8
{[%clk 0:02:41.3]} 17. g3 {[%clk 0:01:55.1]} 17... Ng7 {[%clk 0:02:29.6]} 18. f4
{[%clk 0:01:55.5]} 18... cxd4 {[%clk 0:02:26.5]} 19. cxd4 {[%clk 0:01:56.3]}
19... h5 {[%clk 0:02:20.5]} 20. Nef3 {[%clk 0:01:48.3]} 20... Nb8 {[%clk
0:02:11.7]} 21. b4 {[%clk 0:01:47.5]} 21... Nc6 {[%clk 0:02:08.9]} 22. Rab1
{[%clk 0:01:46]} 22... Qe7 {[%clk 0:02:00.9]} 23. b5 {[%clk 0:01:44.4]} 23...
Nb4 {[%clk 0:02:00.9]} 24. Rfc1 {[%clk 0:01:33.1]} 24... Nxd3 {[%clk 0:01:59.2]}
25. Qxd3 {[%clk 0:01:33.7]} 25... Nf5 {[%clk 0:02:00.1]} 26. Nf1 {[%clk
0:01:27.5]} 26... Rc7 {[%clk 0:01:42.6]} 27. Ne3 {[%clk 0:01:24.4]} 27... Rfc8
{[%clk 0:01:37.3]} 28. Rxc7 {[%clk 0:01:23.3]} 28... Qxc7 {[%clk 0:01:34.1]} 29.
Nxf5 {[%clk 0:01:23.6]} 29... exf5 {[%clk 0:01:34.6]} 30. e6 {[%clk 0:01:12.5]}
30... fxe6 {[%clk 0:01:21.2]} 31. Qe3 {[%clk 0:01:12.7]} 31... Qc2 {[%clk
0:01:17.7]} 32. Qxe6+ {[%clk 0:01:08.9]} 32... Kg7 {[%clk 0:01:14.6]} 33. Rf1
{[%clk 0:00:58.5]} 33... Qe4 {[%clk 0:01:07.5]} 34. Qd7+ {[%clk 0:00:50]} 34...
Kh6 {[%clk 0:00:56.4]} 35. Ng5 {[%clk 0:00:41.5]} 35... Qxd4+ {[%clk 0:00:33.1]}
36. Kg2 {[%clk 0:00:31.6]} 36... Qg7 {[%clk 0:00:32.2]} 37. Qd6 {[%clk
0:00:22.4]} 37... d4+ {[%clk 0:00:29.7]} 38. Kh3 {[%clk 0:00:23.4]} 38... Rc2
{[%clk 0:00:27.7]} 39. Re1 {[%clk 0:00:20.5]} 39... Bg2+ {[%clk 0:00:27.1]} 40.
Kh4 {[%clk 0:00:21.4]} 40... Be4 {[%clk 0:00:23.5]} 41. h3 {[%clk 0:00:18.2]}
41... d3 {[%clk 0:00:21]} 42. a5 {[%clk 0:00:11.3]} 42... d2 {[%clk 0:00:21.1]}
43. Rd1 {[%clk 0:00:11.5]} 43... bxa5 {[%clk 0:00:18.3]} 44. Rxd2 {[%clk
0:00:12.4]} 44... Rxd2 {[%clk 0:00:19.2]} 45. Qxd2 {[%clk 0:00:14.3]} 45... a4
{[%clk 0:00:20.5]} 46. Qa5 {[%clk 0:00:13]} 46... Bc2 {[%clk 0:00:17.8]} 47. Qa6
{[%clk 0:00:12.3]} 47... Bb3 {[%clk 0:00:17.3]} 48. Qd6 {[%clk 0:00:11.6]} 48...
Bc2 {[%clk 0:00:15.8]} 49. Qb4 {[%clk 0:00:11]} 49... Bb3 {[%clk 0:00:16.3]} 50.
Qc5 {[%clk 0:00:12.2]} 50... Bd1 {[%clk 0:00:16.6]} 51. Qg1 {[%clk 0:00:12]}
51... Bb3 {[%clk 0:00:16.9]} 52. g4 {[%clk 0:00:10.7]} 52... fxg4 {[%clk
0:00:17.5]} 53. hxg4 {[%clk 0:00:11.8]} 53... Qe7 {[%clk 0:00:16.3]} 54. gxh5
{[%clk 0:00:10.5]} 54... gxh5 {[%clk 0:00:17.4]} 55. Qc1 {[%clk 0:00:10.6]}
55... Bd5 {[%clk 0:00:15.5]} 56. Qd2 {[%clk 0:00:10]} 56... a3 {[%clk
0:00:15.1]} 57. Qxd5 {[%clk 0:00:04.9]} 57... Qe1+ {[%clk 0:00:13.6]} 58. Kh3
{[%clk 0:00:06.3]} 58... Qf1+ {[%clk 0:00:12.2]} 59. Kg3 {[%clk 0:00:06.9]}
59... Qg1+ {[%clk 0:00:13.3]} 60. Kh3 {[%clk 0:00:06.6]} 60... Qg4+ {[%clk
0:00:14.1]} 61. Kh2 {[%clk 0:00:06.7]} 61... Qxf4+ {[%clk 0:00:15.2]} 62. Kh1
{[%clk 0:00:08.3]} 62... Qxg5 {[%clk 0:00:15.5]} 63. Qd6+ {[%clk 0:00:09.2]}
63... Qg6 {[%clk 0:00:16.5]} 64. Qxa3 {[%clk 0:00:10.2]} 64... Qe4+ {[%clk
0:00:11.2]} 65. Kh2 {[%clk 0:00:10.6]} 65... Qe5+ {[%clk 0:00:12]} 66. Kh1
{[%clk 0:00:10.9]} 66... Qxb5 {[%clk 0:00:13.4]} 67. Qxa7 {[%clk 0:00:12]} 67...
Kg5 {[%clk 0:00:14]} 68. Qe3+ {[%clk 0:00:10.3]} 68... Kh4 {[%clk 0:00:13.4]}
69. Qf4+ {[%clk 0:00:09]} 69... Kh3 {[%clk 0:00:14.6]} 70. Qf3+ {[%clk
0:00:08.3]} 70... Kh4 {[%clk 0:00:15.8]} 71. Qf4+ {[%clk 0:00:08.1]} 71... Kh3
{[%clk 0:00:17.1]} 72. Qf3+ {[%clk 0:00:07.2]} 72... Kh4 {[%clk 0:00:18.4]} 73.
Qf4+ {[%clk 0:00:08.2]} 1/2-1/2

[Event "*** Titled Tuesday Blitz AM"]
[Site "Chess.com"]
[Date "2020.01.07"]
[Round "2"]
[White "zurzan"]
[Black "mortngabriel"]
[Result "1-0"]
[WhiteElo "1965"]
[BlackElo "2385"]
[TimeControl "180+2"]
[EndTime "9:25:54 PST"]
[Termination "zurzan won by resignation"]

1. f4 {[%clk 0:03:01.9]} 1... d5 {[%clk 0:02:59.3]} 2. Nf3 {[%clk 0:03:02.5]}
2... g6 {[%clk 0:02:59.7]} 3. g3 {[%clk 0:03:03.7]} 3... Bg7 {[%clk 0:03:00.8]}
4. Bg2 {[%clk 0:03:05.6]} 4... c5 {[%clk 0:03:01.7]} 5. O-O {[%clk 0:03:07.5]}
5... Nc6 {[%clk 0:03:02.3]} 6. d3 {[%clk 0:03:09.2]} 6... Nf6 {[%clk 0:03:02.6]}
7. Qe1 {[%clk 0:03:10.5]} 7... d4 {[%clk 0:02:50.7]} 8. c4 {[%clk 0:03:09.4]}
8... O-O {[%clk 0:02:50.7]} 9. Na3 {[%clk 0:03:09]} 9... Re8 {[%clk 0:02:49.2]}
10. e4 {[%clk 0:02:55.2]} 10... dxe3 {[%clk 0:02:49.2]} 11. Bxe3 {[%clk
0:02:53.5]} 11... Ng4 {[%clk 0:02:18]} 12. Bxc5 {[%clk 0:02:25.1]} 12... Bxb2
{[%clk 0:02:12.7]} 13. Rb1 {[%clk 0:02:25.9]} 13... b6 {[%clk 0:01:27.3]} 14.
Rxb2 {[%clk 0:02:21.7]} 14... bxc5 {[%clk 0:01:27.4]} 15. h3 {[%clk 0:02:08.2]}
15... Qxd3 {[%clk 0:00:44]} 16. Nb5 {[%clk 0:01:55.4]} 16... Ne3 {[%clk
0:00:33.4]} 17. Rb3 {[%clk 0:01:42.7]} 17... Nxg2 {[%clk 0:00:31.3]} 18. Rxd3
{[%clk 0:01:37.7]} 18... Nxe1 {[%clk 0:00:31.4]} 19. Rxe1 {[%clk 0:01:38.5]}
19... Bf5 {[%clk 0:00:30.7]} 20. Ra3 {[%clk 0:01:20.6]} 20... Red8 {[%clk
0:00:29.1]} 21. g4 {[%clk 0:01:18.5]} 21... Bd3 {[%clk 0:00:27.4]} 22. Rc1
{[%clk 0:01:08.7]} 22... f6 {[%clk 0:00:21.6]} 23. Kf2 {[%clk 0:01:06.6]} 23...
Kf7 {[%clk 0:00:21.4]} 24. Nc7 {[%clk 0:01:04.1]} 24... Rac8 {[%clk 0:00:21.5]}
25. Nd5 {[%clk 0:01:04.8]} 25... Bxc4 {[%clk 0:00:22.6]} 26. Nxe7 {[%clk
0:00:51.5]} 26... Kxe7 {[%clk 0:00:20.2]} 27. Rxc4 {[%clk 0:00:52.4]} 27... Rd5
{[%clk 0:00:22.1]} 28. Re4+ {[%clk 0:00:48.9]} 28... Kd6 {[%clk 0:00:23.5]} 29.
Ra6 {[%clk 0:00:46.8]} 29... Rb8 {[%clk 0:00:22.2]} 30. Re2 {[%clk 0:00:41.4]}
30... Rb6 {[%clk 0:00:22.7]} 31. Ra3 {[%clk 0:00:37.3]} 31... Nd4 {[%clk
0:00:23.2]} 32. Nxd4 {[%clk 0:00:35.1]} 32... cxd4 {[%clk 0:00:16.2]} 33. Rxa7
{[%clk 0:00:37]} 33... d3 {[%clk 0:00:16.1]} 34. Rd2 {[%clk 0:00:38.1]} 34...
Rc6 {[%clk 0:00:14.3]} 35. Ke3 {[%clk 0:00:37.7]} 35... Rc3 {[%clk 0:00:14.3]}
36. Ra8 {[%clk 0:00:35.7]} 36... Ke7 {[%clk 0:00:11.3]} 37. Ra7+ {[%clk
0:00:35.3]} 37... Ke6 {[%clk 0:00:12.5]} 38. Rxh7 {[%clk 0:00:35.6]} 38... g5
{[%clk 0:00:11.4]} 39. f5+ {[%clk 0:00:36]} 39... Ke5 {[%clk 0:00:10.9]} 40.
Re7+ {[%clk 0:00:36.4]} 40... Kd6 {[%clk 0:00:12.4]} 41. Re6+ {[%clk 0:00:35.3]}
41... Kc5 {[%clk 0:00:13.7]} 42. Rxf6 {[%clk 0:00:37.2]} 42... Rc1 {[%clk
0:00:14.7]} 43. Rxd3 {[%clk 0:00:33.9]} 43... Re5+ {[%clk 0:00:16.1]} 44. Kd2
{[%clk 0:00:34.6]} 44... Ree1 {[%clk 0:00:17.1]} 45. Rc3+ {[%clk 0:00:35.4]}
45... Rxc3 {[%clk 0:00:17.9]} 46. Kxc3 {[%clk 0:00:37.3]} 46... Re3+ {[%clk
0:00:19.2]} 47. Kd2 {[%clk 0:00:37.7]} 47... Rxh3 {[%clk 0:00:21.1]} 48. Rg6
{[%clk 0:00:36.8]} 48... Kd4 {[%clk 0:00:22.1]} 49. Rxg5 {[%clk 0:00:37.9]}
49... Rh2+ {[%clk 0:00:24]} 50. Kc1 {[%clk 0:00:36.7]} 50... Kc3 {[%clk
0:00:25.2]} 51. Rh5 {[%clk 0:00:32.5]} 51... Rg2 {[%clk 0:00:24.5]} 52. Rh3+
{[%clk 0:00:32.5]} 52... Kb4 {[%clk 0:00:21.6]} 53. Rb3+ {[%clk 0:00:30.6]}
53... Kc4 {[%clk 0:00:22.5]} 54. f6 {[%clk 0:00:29.1]} 54... Rxg4 {[%clk
0:00:23.2]} 55. Rf3 {[%clk 0:00:29.7]} 55... Rg8 {[%clk 0:00:23.3]} 56. f7
{[%clk 0:00:30.7]} 56... Rf8 {[%clk 0:00:24.8]} 57. Kb2 {[%clk 0:00:32.4]} 57...
Kb4 {[%clk 0:00:26.1]} 58. a3+ {[%clk 0:00:33]} 58... Ka4 {[%clk 0:00:27.2]} 59.
Rf4+ {[%clk 0:00:34.2]} 59... Kb5 {[%clk 0:00:29.1]} 60. Kb3 {[%clk 0:00:35.1]}
60... Ka5 {[%clk 0:00:29.4]} 61. Rf5+ {[%clk 0:00:36.2]} 61... Kb6 {[%clk
0:00:30.2]} 62. Kb4 {[%clk 0:00:37.6]} 62... Kc6 {[%clk 0:00:31.4]} 63. Rf6+
{[%clk 0:00:33.6]} 63... Kb7 {[%clk 0:00:25.5]} 64. Kb5 {[%clk 0:00:33.9]} 64...
Ka7 {[%clk 0:00:25.7]} 65. a4 {[%clk 0:00:33.1]} 65... Kb7 {[%clk 0:00:26.8]}
66. a5 {[%clk 0:00:33.8]} 66... Kc7 {[%clk 0:00:28]} 67. a6 {[%clk 0:00:33.1]}
67... Rb8+ {[%clk 0:00:27.7]} 68. Ka5 {[%clk 0:00:31.6]} 68... Rf8 {[%clk
0:00:29.6]} 69. Rb6 {[%clk 0:00:26.3]} 69... Rh8 {[%clk 0:00:21.6]} 70. a7
{[%clk 0:00:21.8]} 70... Ra8 {[%clk 0:00:16.7]} 71. Ka6 {[%clk 0:00:19.4]} 71...
Rh8 {[%clk 0:00:14]} 72. Rb7+ {[%clk 0:00:19.8]} 72... Kc6 {[%clk 0:00:14.1]}
73. Rb8 {[%clk 0:00:18.7]} 73... Rh3 {[%clk 0:00:14.4]} 74. a8=Q+ {[%clk
0:00:19]} 74... Kc7 {[%clk 0:00:14.6]} 75. Qb7+ {[%clk 0:00:19.3]} 1-0

[Event "*** Titled Tuesday Blitz AM"]
[Site "Chess.com"]
[Date "2020.01.07"]
[Round "2"]
[White "MathiasWomacka"]
[Black "Tayson_7"]
[Result "1-0"]
[WhiteElo "2355"]
[BlackElo "2567"]
[TimeControl "180+2"]
[EndTime "9:26:17 PST"]
[Termination "MathiasWomacka won by resignation"]

1. e4 {[%clk 0:03:01.9]} 1... e5 {[%clk 0:02:59.1]} 2. Nf3 {[%clk 0:03:02.3]}
2... Nc6 {[%clk 0:02:56.7]} 3. Bc4 {[%clk 0:03:02.9]} 3... Nf6 {[%clk
0:02:54.5]} 4. d3 {[%clk 0:03:03.5]} 4... Bc5 {[%clk 0:02:54.7]} 5. O-O {[%clk
0:03:03.3]} 5... a6 {[%clk 0:02:55.2]} 6. c3 {[%clk 0:03:00.3]} 6... Ba7 {[%clk
0:02:52.9]} 7. Bb3 {[%clk 0:02:56.6]} 7... d6 {[%clk 0:02:52.4]} 8. Nbd2 {[%clk
0:02:56.3]} 8... h6 {[%clk 0:02:47.7]} 9. Re1 {[%clk 0:02:53.6]} 9... O-O {[%clk
0:02:45.7]} 10. Nf1 {[%clk 0:02:49.1]} 10... Be6 {[%clk 0:02:43.8]} 11. Be3
{[%clk 0:02:40.4]} 11... Re8 {[%clk 0:02:38.8]} 12. Bxa7 {[%clk 0:02:39.4]}
12... Rxa7 {[%clk 0:02:36.7]} 13. Ng3 {[%clk 0:02:40.7]} 13... Qd7 {[%clk
0:02:33.5]} 14. d4 {[%clk 0:02:38.8]} 14... Bg4 {[%clk 0:01:16.4]} 15. h3 {[%clk
0:02:24.8]} 15... Bxf3 {[%clk 0:01:16.1]} 16. Qxf3 {[%clk 0:02:26.7]} 16... exd4
{[%clk 0:01:15.3]} 17. Nf5 {[%clk 0:02:27.2]} 17... Ne5 {[%clk 0:00:58.7]} 18.
Qg3 {[%clk 0:02:05.6]} 18... Nh5 {[%clk 0:00:45.2]} 19. Qh4 {[%clk 0:01:54.1]}
19... Nf6 {[%clk 0:00:38.6]} 20. Nxh6+ {[%clk 0:01:43.3]} 20... Kf8 {[%clk
0:00:38.2]} 21. cxd4 {[%clk 0:01:42.9]} 21... Ng6 {[%clk 0:00:38.9]} 22. Qg5
{[%clk 0:01:44]} 22... d5 {[%clk 0:00:29.5]} 23. e5 {[%clk 0:01:25.6]} 23... Nh7
{[%clk 0:00:26.5]} 24. Qf5 {[%clk 0:01:25.8]} 24... Qxf5 {[%clk 0:00:20.6]} 25.
Nxf5 {[%clk 0:01:27.7]} 25... c6 {[%clk 0:00:21.5]} 26. h4 {[%clk 0:01:21.5]}
26... Nf4 {[%clk 0:00:20.9]} 27. g3 {[%clk 0:01:17.4]} 27... Ne6 {[%clk
0:00:21.8]} 28. Rad1 {[%clk 0:01:14.2]} 28... a5 {[%clk 0:00:22.7]} 29. a4
{[%clk 0:01:14.1]} 29... Rd8 {[%clk 0:00:20.5]} 30. f4 {[%clk 0:01:11.3]} 30...
Ra6 {[%clk 0:00:20.5]} 31. Bc2 {[%clk 0:01:07.9]} 31... Rb6 {[%clk 0:00:19.8]}
32. b3 {[%clk 0:01:08.6]} 32... Rb4 {[%clk 0:00:19.6]} 33. h5 {[%clk 0:01:02.5]}
33... g6 {[%clk 0:00:19]} 34. hxg6 {[%clk 0:01:02.5]} 34... fxg6 {[%clk
0:00:20.9]} 35. Nh4 {[%clk 0:01:04.1]} 35... Nxd4 {[%clk 0:00:21.8]} 36. Bxg6
{[%clk 0:01:00.7]} 36... Kg8 {[%clk 0:00:20.3]} 37. e6 {[%clk 0:01:00.8]} 37...
Nf6 {[%clk 0:00:13.8]} 38. e7 {[%clk 0:01:00.5]} 38... Rd6 {[%clk 0:00:08.1]}
39. e8=Q+ {[%clk 0:00:47.6]} 39... Nxe8 {[%clk 0:00:08.8]} 40. Rxe8+ {[%clk
0:00:49.5]} 40... Kg7 {[%clk 0:00:08.3]} 41. Bd3 {[%clk 0:00:46.9]} 41... Rxb3
{[%clk 0:00:07]} 42. Kf2 {[%clk 0:00:44.9]} 42... Re6 {[%clk 0:00:05.9]} 43.
Rxe6 {[%clk 0:00:43.3]} 43... Nxe6 {[%clk 0:00:07.8]} 44. Ke3 {[%clk 0:00:32.4]}
44... c5 {[%clk 0:00:07.2]} 45. Rb1 {[%clk 0:00:33.4]} 45... Ra3 {[%clk
0:00:06.1]} 46. Rxb7+ {[%clk 0:00:33]} 46... Kf6 {[%clk 0:00:07.7]} 47. Kd2
{[%clk 0:00:29.6]} 47... c4 {[%clk 0:00:08.3]} 48. Bf5 {[%clk 0:00:29.7]} 48...
Nc5 {[%clk 0:00:08.3]} 49. Rb6+ {[%clk 0:00:27.8]} 49... Kf7 {[%clk 0:00:09.2]}
50. g4 {[%clk 0:00:28.9]} 50... d4 {[%clk 0:00:09.6]} 51. g5 {[%clk 0:00:29.7]}
51... Ra2+ {[%clk 0:00:10.7]} 52. Kc1 {[%clk 0:00:30.4]} 52... Nb3+ {[%clk
0:00:09.3]} 53. Kb1 {[%clk 0:00:30.1]} 53... Rh2 {[%clk 0:00:10.2]} 54. Rb7+
{[%clk 0:00:29.2]} 54... Ke8 {[%clk 0:00:10.5]} 55. g6 {[%clk 0:00:29.3]} 55...
Rxh4 {[%clk 0:00:09.3]} 56. g7 {[%clk 0:00:29.3]} 56... Rh1+ {[%clk 0:00:11]}
57. Kb2 {[%clk 0:00:27.4]} 57... Rh2+ {[%clk 0:00:12.6]} 58. Ka3 {[%clk
0:00:27.8]} 58... Rg2 {[%clk 0:00:14.2]} 59. Be6 {[%clk 0:00:25.3]} 59... d3
{[%clk 0:00:15.4]} 60. g8=Q+ {[%clk 0:00:25.2]} 60... Rxg8 {[%clk 0:00:15.6]}
61. Bxg8 {[%clk 0:00:27.1]} 61... d2 {[%clk 0:00:15.6]} 62. Bf7+ {[%clk
0:00:22.6]} 62... Kd8 {[%clk 0:00:13.7]} 63. Bh5 {[%clk 0:00:24.1]} 63... Nc5
{[%clk 0:00:11.9]} 64. Rb5 {[%clk 0:00:22.8]} 64... Ne4 {[%clk 0:00:04.7]} 65.
Rd5+ {[%clk 0:00:21.2]} 65... Kc7 {[%clk 0:00:05.7]} 66. Rd4 {[%clk 0:00:21.9]}
66... c3 {[%clk 0:00:03.5]} 67. Rxe4 {[%clk 0:00:21.2]} 67... c2 {[%clk
0:00:04]} 68. Rc4+ {[%clk 0:00:22]} 1-0

[Event "*** Titled Tuesday Blitz AM"]
[Site "Chess.com"]
[Date "2020.01.07"]
[Round "2"]
[White "Hydrargyrum_Girl"]
[Black "2nd_life"]
[Result "0-1"]
[WhiteElo "2211"]
[BlackElo "2489"]
[TimeControl "180+2"]
[EndTime "9:26:23 PST"]
[Termination "2nd_life won on time"]

1. d4 {[%clk 0:02:56.1]} 1... Nf6 {[%clk 0:02:59.4]} 2. Nc3 {[%clk 0:02:57.3]}
2... d5 {[%clk 0:02:58.2]} 3. Bg5 {[%clk 0:02:58.2]} 3... e6 {[%clk 0:02:57.4]}
4. e4 {[%clk 0:02:59.3]} 4... Bb4 {[%clk 0:02:51.2]} 5. e5 {[%clk 0:02:58.6]}
5... h6 {[%clk 0:02:52]} 6. Bd2 {[%clk 0:02:59.9]} 6... Bxc3 {[%clk 0:02:52.3]}
7. Bxc3 {[%clk 0:03:01.8]} 7... Ne4 {[%clk 0:02:47]} 8. Bb4 {[%clk 0:03:03]}
8... c5 {[%clk 0:02:38.8]} 9. Bxc5 {[%clk 0:03:03.8]} 9... Nxc5 {[%clk
0:02:29.2]} 10. dxc5 {[%clk 0:03:05.7]} 10... Qa5+ {[%clk 0:02:30.3]} 11. c3
{[%clk 0:03:06.2]} 11... Qxc5 {[%clk 0:02:30.8]} 12. Qd4 {[%clk 0:03:07.6]}
12... b6 {[%clk 0:02:27]} 13. Nf3 {[%clk 0:02:52.8]} 13... O-O {[%clk
0:02:23.7]} 14. Bd3 {[%clk 0:02:49.6]} 14... Ba6 {[%clk 0:02:22.5]} 15. Bxa6
{[%clk 0:02:42.2]} 15... Nxa6 {[%clk 0:02:22.3]} 16. O-O {[%clk 0:02:43.2]}
16... Rfc8 {[%clk 0:02:16.2]} 17. Rac1 {[%clk 0:02:40.8]} 17... Qb5 {[%clk
0:02:03.5]} 18. b3 {[%clk 0:02:22.4]} 18... Rc7 {[%clk 0:02:01.9]} 19. Rc2
{[%clk 0:02:00.1]} 19... Rac8 {[%clk 0:01:58.2]} 20. Rfc1 {[%clk 0:02:00.4]}
20... Qa5 {[%clk 0:01:35.4]} 21. h3 {[%clk 0:01:39.2]} 21... Qa3 {[%clk
0:01:35]} 22. Qe3 {[%clk 0:01:07.9]} 22... Nc5 {[%clk 0:01:14.7]} 23. Nd4 {[%clk
0:01:07]} 23... Qa6 {[%clk 0:01:11.6]} 24. f3 {[%clk 0:00:43.8]} 24... Nd3
{[%clk 0:00:43.6]} 25. Rd1 {[%clk 0:00:22.8]} 25... Nb4 {[%clk 0:00:43.6]} 26.
Rcc1 {[%clk 0:00:12]} 26... Nxa2 {[%clk 0:00:38.2]} 27. Ra1 {[%clk 0:00:10.5]}
27... Rxc3 {[%clk 0:00:13.5]} 28. Qd2 {[%clk 0:00:10.6]} 28... Qa5 {[%clk
0:00:05.8]} 29. Rxa2 {[%clk 0:00:10.1]} 29... Qc5 {[%clk 0:00:06.2]} 30. Kh2
{[%clk 0:00:06.4]} 30... a5 {[%clk 0:00:06.5]} 31. Rda1 {[%clk 0:00:05.4]} 31...
Qc7 {[%clk 0:00:06.9]} 32. Rd1 {[%clk 0:00:06.5]} 32... Qxe5+ {[%clk 0:00:07.7]}
33. f4 {[%clk 0:00:07.2]} 33... Qe4 {[%clk 0:00:05.2]} 34. Re1 {[%clk
0:00:07.5]} 34... Qd3 {[%clk 0:00:04.7]} 35. Qxd3 {[%clk 0:00:08.2]} 35... Rxd3
{[%clk 0:00:06.2]} 36. Nf3 {[%clk 0:00:09.7]} 36... Rxb3 {[%clk 0:00:06.4]} 37.
Ne5 {[%clk 0:00:10.9]} 37... Rbc3 {[%clk 0:00:05.7]} 38. Ree2 {[%clk 0:00:12.1]}
38... Rb3 {[%clk 0:00:05.3]} 39. Reb2 {[%clk 0:00:13.3]} 39... Rxb2 {[%clk
0:00:06]} 40. Rxb2 {[%clk 0:00:15.2]} 40... Ra8 {[%clk 0:00:06.9]} 41. Rxb6
{[%clk 0:00:15.4]} 41... a4 {[%clk 0:00:08.4]} 42. Rb2 {[%clk 0:00:16.9]} 42...
a3 {[%clk 0:00:09.5]} 43. Ra2 {[%clk 0:00:18.3]} 43... Kf8 {[%clk 0:00:10.5]}
44. Kg3 {[%clk 0:00:19.6]} 44... Ke7 {[%clk 0:00:11.8]} 45. Kf3 {[%clk
0:00:21.1]} 45... f6 {[%clk 0:00:13.1]} 46. Nd3 {[%clk 0:00:21.5]} 46... Kd6
{[%clk 0:00:14.5]} 47. Ke3 {[%clk 0:00:22.8]} 47... e5 {[%clk 0:00:15.2]} 48.
fxe5+ {[%clk 0:00:23.9]} 48... fxe5 {[%clk 0:00:17.1]} 49. Nc1 {[%clk
0:00:23.8]} 49... Kc5 {[%clk 0:00:17.8]} 50. Kd3 {[%clk 0:00:24.8]} 50... e4+
{[%clk 0:00:17.8]} 51. Kc3 {[%clk 0:00:26]} 51... d4+ {[%clk 0:00:19]} 52. Kb3
{[%clk 0:00:27]} 52... d3 {[%clk 0:00:13.2]} 53. Kc3 {[%clk 0:00:23.9]} 53...
Kd5 {[%clk 0:00:13.9]} 54. Kd2 {[%clk 0:00:23.4]} 54... Kd4 {[%clk 0:00:13.9]}
55. Nb3+ {[%clk 0:00:24.7]} 55... Kc4 {[%clk 0:00:14.9]} 56. Nc1 {[%clk
0:00:25.8]} 56... g5 {[%clk 0:00:10.6]} 57. g4 {[%clk 0:00:26.2]} 57... Kd4
{[%clk 0:00:04.4]} 58. Nb3+ {[%clk 0:00:26.5]} 58... Kc4 {[%clk 0:00:05.8]} 59.
Nc1 {[%clk 0:00:27.6]} 59... Kd5 {[%clk 0:00:03.5]} 60. Ke3 {[%clk 0:00:23.5]}
60... Ke5 {[%clk 0:00:04.7]} 61. Nb3 {[%clk 0:00:22.8]} 61... Kd5 {[%clk
0:00:06]} 62. Nd2 {[%clk 0:00:23.5]} 62... Ra4 {[%clk 0:00:06.2]} 63. Nb3 {[%clk
0:00:20.2]} 63... Kc4 {[%clk 0:00:04.4]} 64. Nd2+ {[%clk 0:00:20.7]} 64... Kc3
{[%clk 0:00:05.8]} 65. Ra1 {[%clk 0:00:13.2]} 65... a2 {[%clk 0:00:04.7]} 66.
Nxe4+ {[%clk 0:00:09.2]} 66... Kb2 {[%clk 0:00:05]} 67. Rd1 {[%clk 0:00:09.8]}
67... a1=Q {[%clk 0:00:04.9]} 68. Rxa1 {[%clk 0:00:10.9]} 68... Rxa1 {[%clk
0:00:06.8]} 69. Kxd3 {[%clk 0:00:11.8]} 69... Ra3+ {[%clk 0:00:07.4]} 70. Kd4
{[%clk 0:00:10.1]} 70... Rxh3 {[%clk 0:00:09.3]} 71. Ke5 {[%clk 0:00:11.4]}
71... Kc2 {[%clk 0:00:10]} 72. Kf5 {[%clk 0:00:12.6]} 72... Rh1 {[%clk
0:00:05.6]} 73. Kg6 {[%clk 0:00:13]} 73... Rh4 {[%clk 0:00:05.9]} 74. Kf5 {[%clk
0:00:13.5]} 74... Kd3 {[%clk 0:00:06.8]} 0-1